[Event "WSTCC-65 2024"]
[Site "Krakow"]
[Date "2024.07.04"]
[Round "3.10"]
[White "Westerinen, Heikki M.J."]
[Black "Legky, Nikolay A"]
[Result "1/2-1/2"]
[ECO "C05"]
[WhiteElo "2221"]
[BlackElo "2339"]
[Annotator "TA"]
[PlyCount "78"]
[EventDate "2024.07.01"]
[EventType "team-tourn"]
[EventCountry "POL"]
[SourceTitle "playchess.com"]
[Source "ChessBase"]
[SourceQuality "1"]
[TimeControl "40/5400+30:1800+30"]

{[%evp 13,78,12,12,0,11,15,37,0,0,-12,-8,0,0,-13,0,-1,0,-18,0,0,0,0,61,47,91,99,93,76,97,87,80,61,94,54,104,101,96,94,106,102,106,104,97,97,95,95,95,95,97,102,106,106,104,106,113,119,114,56,157,111,132,132,125,0,118,0,121]} 1. e4 {[%emt 0:00:04]} e6 {[%emt 0:00:04]} 2. d4 {[%emt 0:00:11]} d5 {[%emt 0:00:06]} 3. Nd2 {[%emt 0:00:09]} Nf6 {[%emt 0:00:35]} 4. e5 {[%emt 0:01:43]} Nfd7 {[%emt 0:00:06]} 5. f4 {[%emt 0:02:29]} c5 {[%emt 0:00:05]} 6. c3 {[%emt 0:00:42]} Nc6 {[%emt 0:00:05]} 7. Ngf3 {[%emt 0:01:04]} a5 {[%emt 0:00:12]} 8. Be2 {[%emt 0:19:29]} a4 {[%emt 0:02:30]} 9. O-O {[%emt 0:00:51]} Qb6 {[%emt 0:04:46]} 10. dxc5 {[%emt 0:00:37] White is slightly better.} Nxc5 {[%emt 0:03:42]} 11. Kh1 {[%emt 0:03:16]} Be7 {[%emt 0:02:52]} 12. Nd4 {[%emt 0:01:48]} Bd7 {[%emt 0:05:03]} 13. a3 {[%emt 0:03:59]} O-O {[%emt 0:07:45]} 14. N2f3 {[%emt 0:04:39]} Ne4 {[%emt 0:12:43]} 15. Bd3 {[%emt 0:06:36]} f5 {[%emt 0:15:58]} 16. Qe2 {[%emt 0:07:21]} Na5 {[%emt 0:10:22]} 17. Be3 {[%emt 0:01:11][%cal Od4f5] Threatens to win with Nxf5!} Qc7 {[%emt 0:00:02]} (17... Nc5 $11) 18. Rg1 {[%emt 0:03:52]} g6 {[%emt 0:07:09]} 19. g4 {[%emt 0:02:05]} Kh8 {[%emt 0:00:03]} 20. Rg2 {[%emt 0:02:20]} Nc4 {[%emt 0:01:11]} 21. Rag1 {[%emt 0:00:58]} Rg8 {[%emt 0:04:45]} 22. gxf5 {[%emt 0:19:17]} gxf5 {[%emt 0:00:31]} 23. Bc1 {[%emt 0:05:09]} b5 {[%emt 0:00:40]} (23... Nc5 $1 $14) 24. h4 $16 {[%emt 0:00:56][%cal Bh2h4,Bh4g5][%mdl 32]} Raf8 {[%emt 0:02:00]} 25. Ng5 {[%emt 0:00:15]} Bxg5 {[%emt 0:09:01]} 26. hxg5 {[%emt 0:00:11]} Rg6 {[%emt 0:00:03]} 27. Rh2 {[%emt 0:00:26][%cal Bg2h2,Bh2h3,Bh3h6][%mdl 32]} Be8 {[%emt 0:00:35]} 28. Qe1 {[%emt 0:03:32]} Qd7 {[%emt 0:00:59]} 29. Rgg2 {[%emt 0:01:04]} Rg7 {[%emt 0:01:00]} 30. Rh3 {[%emt 0:00:48]} Bg6 {[%emt 0:00:07]} 31. Rgh2 {[%emt 0:00:27]} Kg8 {[%emt 0:00:57][%cal Bh8g8,Bg8f7,Bf7e7][%mdl 32]} 32. Rh6 {[%emt 0:00:58]} Kf7 {[%emt 0:01:36]} 33. Be2 {[%emt 0:01:08]} Ke7 {[%emt 0:01:11]} 34. Kg2 {[%emt 0:02:08]} Rfg8 {[%emt 0:01:21]} 35. Bf3 {[%emt 0:01:00]} (35. Qh1 $16) 35... Qb7 {[%emt 0:01:00]} ({Better is} 35... Kd8 $1 $14) 36. Kf1 {[%emt 0:00:28] Some like it hot} (36. Qh1 $142 {[%cal Rh6h7] Rxh7 would now be deadly.} Qd7 37. Bh5) 36... Qa6 {[%emt 0:01:11]} 37. Kg1 {[%emt 0:00:40]} ({Don't do} 37. Bxe4 dxe4 38. Kf2 Qb7 $14) 37... Qb7 {[%emt 0:00:05]} 38. Kf1 {[%emt 0:01:28]} Qa6 $1 {[%emt 0:00:05]} 39. Kg1 {[%emt 0:00:48]} ({Resist} 39. Bxe4 dxe4 40. Kf2 Kf7 $14) 39... Qb7 $1 {[%emt 0:00:03] Weighted Error Value: White=0.22 (precise) /Black=0.13 (very precise) .  Mistake:       	White=2     	Black=3      Inaccurate:     	White=2     	Black=2      OK:         	White=10    	Black=9      Best:        	White=1     	---        Strong:       	---       	Black=2} 1/2-1/2

[Event "WSTCC-65 2024"]
[Site "Krakow"]
[Date "2024.07.04"]
[Round "3.10"]
[White "Fletcher, John"]
[Black "Rooze, Jan"]
[Result "0-1"]
[ECO "D01"]
[WhiteElo "2007"]
[BlackElo "2222"]
[Annotator "TA"]
[PlyCount "40"]
[EventDate "2024.07.01"]
[EventType "team-tourn"]
[EventCountry "POL"]
[SourceTitle "playchess.com"]
[Source "ChessBase"]
[SourceQuality "1"]
[TimeControl "40/5400+30:1800+30"]

{[%evp 9,39,-43,-44,-80,-75,-54,-64,-251,-160,-157,-156,-150,-166,-168,-168,-193,-214,-196,-191,-194,-112,-1261,-1137,-29987,-29988,-29988,-29989,-29997,-29998,-29998,-29999,-29999]} 1. d4 {[%emt 0:00:37]} Nf6 {[%emt 0:00:00]} 2. Nc3 {[%emt 0:00:09]} d5 {[%emt 0:00:00]} 3. Bg5 {[%emt 0:00:12]} Nbd7 {[%emt 0:01:29]} 4. Qd3 {[%emt 0:02:54]} c5 {[%emt 0:16:34]} 5. O-O-O {[%emt 0:11:21]} c4 {[%emt 0:36:14]} 6. Qf3 {[%emt 0:03:27]} Qa5 {[%emt 0:04:38] And now ...e6 would win.} 7. Kb1 {[%emt 0:03:01]} e6 {[%emt 0:01:00] ...b5 is the strong threat.} 8. a3 $2 {[%emt 0:16:44] [#]} (8. Bd2 $1 $15) 8... Ne4 $1 {[%emt 0:01:33][%mdl 512]} 9. Nxe4 {[%emt 0:05:29]} dxe4 {[%emt 0:00:09]} 10. Qg3 {[%emt 0:01:11] [#]} c3 $1 {[%emt 0:01:08][%mdl 512]} 11. Bc1 {[%emt 0:00:52]} (11. Nh3 cxb2) 11... cxb2 {[%emt 0:00:26]} 12. Bxb2 {[%emt 0:00:07]} Nf6 {[%emt 0:00:20]} 13. Nh3 {[%emt 0:08:52]} Bd7 {[%emt 0:00:58]} 14. c4 {[%emt 0:07:59]} Rc8 {[%emt 0:02:27] White is weak on the light squares} (14... Be7 $19 {White must now prevent ...0-0.} 15. d5 O-O (15... exd5 16. cxd5 Nxd5 17. Qxg7 $17)) 15. e3 $2 {[%emt 0:05:24][%mdl 8192]} (15. Rc1 $17) 15... Bxa3 $19 {[%emt 0:07:36]} 16. Qxg7 {[%emt 0:06:42] [#]} Bxb2 $1 {[%emt 0:00:18] Black mates.} 17. Qxh8+ {[%emt 0:07:08]} Ke7 {[%emt 0:00:16]} 18. Qxc8 {[%emt 0:00:03]} Qa1+ {[%emt 0:00:33]} 19. Kc2 {[%emt 0:00:00]} Ba4+ {[%emt 0:00:02]} 20. Kd2 {[%emt 0:00:02]} Qxd1# {Weighted Error Value: White=1.06/Black=0.12 (very precise) .  Loses game:     	White=2     	---        Mistake:       	---       	Black=1      Inaccurate:     	White=1     	Black=1      OK:         	White=4     	Black=5      Best:        	---       	Black=1} 0-1

[Event "WSTCC-65 2024"]
[Site "Krakow"]
[Date "2024.07.04"]
[Round "3.10"]
[White "O`Neill, Julie Anne"]
[Black "Mortensen, John"]
[Result "0-1"]
[ECO "B23"]
[WhiteElo "1806"]
[BlackElo "2048"]
[Annotator "NA RC"]
[PlyCount "114"]
[EventDate "2024.07.01"]
[EventType "team-tourn"]
[EventCountry "POL"]
[SourceTitle "playchess.com"]
[Source "ChessBase"]
[SourceQuality "1"]
[TimeControl "40/5400+30:1800+30"]

1. e4 {[%emt 0:00:03]} c5 {[%emt 0:00:12]} 2. Nc3 {[%emt 0:00:08]} Nc6 {[%emt 0:00:07]} 3. f4 {[%emt 0:00:07]} g6 {[%emt 0:00:18]} 4. Nf3 {[%emt 0:00:09]} Bg7 {[%emt 0:00:15]} 5. Bc4 {[%emt 0:00:13]} e6 {[%emt 0:00:40]} 6. d3 {[%emt 0:03:22]} Nge7 {[%emt 0:01:19]} 7. O-O {[%emt 0:00:12]} d5 {[%emt 0:00:54]} 8. Bb3 {[%emt 0:01:32]} O-O {[%emt 0:01:44]} 9. Qe1 {[%emt 0:01:23]} Nd4 {[%emt 0:04:31]} 10. Ne2 {[%emt 0:11:21]} Nxe2+ {[%emt 0:03:04]} 11. Qxe2 {[%emt 0:00:24]} b5 {[%emt 0:03:12]} 12. c3 {[%emt 0:01:13]} Bb7 {[%emt 0:01:37]} 13. Bc2 {[%emt 0:02:37]} Qb6 {[%emt 0:03:38]} 14. Kh1 {[%emt 0:02:33]} Rad8 {[%emt 0:02:50]} 15. Ne5 {[%emt 0:05:51]} d4 {[%emt 0:07:12]} 16. c4 {[%emt 0:07:27]} f6 {[%emt 0:03:33]} 17. Nf3 {[%emt 0:07:44]} a6 {[%emt 0:02:26]} 18. b3 {[%emt 0:03:27]} Bc6 {[%emt 0:02:57]} 19. Qf2 {[%emt 0:00:44]} Qb7 {[%emt 0:03:39]} 20. Qh4 {[%emt 0:08:12]} Qd7 {[%emt 0:00:57]} 21. Bd2 {[%emt 0:04:46]} Rb8 {[%emt 0:01:54]} 22. Rae1 {[%emt 0:04:34]} Qb7 {[%emt 0:04:49]} 23. Bd1 {[%emt 0:01:40]} bxc4 {[%emt 0:01:26]} 24. bxc4 {[%emt 0:03:53]} a5 {[%emt 0:01:23]} 25. Qh3 {[%emt 0:05:21]} Qd7 {[%emt 0:01:18]} 26. e5 {[%emt 0:03:24]} f5 {[%emt 0:00:42]} 27. Bxa5 {[%emt 0:00:41]} Rb2 {[%emt 0:00:23]} 28. Bb3 {[%emt 0:01:22]} Qa7 {[%emt 0:08:18]} 29. Qh4 {[%emt 0:06:44]} Re8 {[%emt 0:02:08]} 30. Ng5 {[%emt 0:06:47]} h6 {[%emt 0:00:39]} 31. Bd2 {[%emt 0:02:40]} Rxd2 {[%emt 0:00:26]} 32. Nf3 {[%emt 0:00:12]} Rxd3 {[%emt 0:00:58]} 33. Re2 {[%emt 0:00:44]} Qb7 {[%emt 0:01:14]} 34. Ne1 {[%emt 0:00:19]} Rc3 {[%emt 0:01:18]} 35. Kg1 {[%emt 0:00:45]} Be4 {[%emt 0:01:25]} 36. Qf2 {[%emt 0:00:50]} Nc6 {[%emt 0:01:47]} 37. h4 {[%emt 0:01:42]} d3 {[%emt 0:01:01]} 38. Rd2 {[%emt 0:00:38]} Nd4 {[%emt 0:00:16]} 39. Nf3 {[%emt 0:01:11]} Ne2+ {[%emt 0:01:58]} 40. Kh2 {[%emt 0:00:57]} Qe7 {[%emt 0:02:45]} 41. g3 {[%emt 0:31:25]} Qb7 {[%emt 0:31:36]} 42. Bd1 {[%emt 0:00:00]} Bxf3 {[%emt 0:00:00]} 43. Qxf3 {[%emt 0:00:00]} Qxf3 {[%emt 0:00:00]} 44. Rxf3 {[%emt 0:00:00]} Nc1 {[%emt 0:00:00]} 45. Ba4 {[%emt 0:00:00]} Ra8 {[%emt 0:00:00]} 46. Bd7 {[%emt 0:00:00]} Kf7 {[%emt 0:00:00]} 47. a4 {[%emt 0:00:00]} Rd8 {[%emt 0:00:00]} 48. Bb5 {[%emt 0:00:00]} Nb3 {[%emt 0:00:00]} 49. Rd1 {[%emt 0:00:00]} Rc2+ {[%emt 0:00:00]} 50. Kh3 {[%emt 0:00:00]} d2 {[%emt 0:00:00]} 51. Rff1 {[%emt 0:00:00]} Rd3 {[%emt 0:00:00]} 52. Bc6 {[%emt 0:00:00]} Na5 {[%emt 0:00:00]} 53. Bb5 {[%emt 0:00:00]} Rd4 {[%emt 0:00:00]} 54. Rb1 {[%emt 0:00:00]} Bf8 {[%emt 0:00:00]} 55. Ba6 {[%emt 0:00:00]} Nxc4 {[%emt 0:00:00]} 56. Rb7+ {[%emt 0:00:00]} Be7 {[%emt 0:00:00]} 57. Bxc4 {[%emt 0:00:00]} Rcxc4 {[%emt 0:00:00]} 0-1

[Event "WSTCC-65 2024"]
[Site "Krakow"]
[Date "2024.07.04"]
[Round "3.11"]
[White "Roos, Louis"]
[Black "Hentunen, Asko"]
[Result "1-0"]
[ECO "A37"]
[WhiteElo "2288"]
[BlackElo "2207"]
[Annotator "TA"]
[PlyCount "81"]
[EventDate "2024.07.01"]
[EventType "team-tourn"]
[EventCountry "POL"]
[SourceTitle "playchess.com"]
[Source "ChessBase"]
[SourceQuality "1"]
[TimeControl "40/5400+30:1800+30"]

{[%evp 12,81,36,-19,41,-22,0,-12,-14,-8,-11,-28,0,-31,-3,-11,0,0,0,-41,-11,-26,-25,-33,-27,-41,-26,-96,-38,-55,-55,-75,31,17,34,31,41,25,39,33,32,39,31,34,53,68,58,53,83,61,133,46,151,157,160,162,167,120,145,129,297,311,301,293,338,345,339,295,424,424,423,420]} 1. Nf3 {[%emt 0:01:19]} c5 {[%emt 0:00:06]} 2. g3 {[%emt 0:00:13]} g6 {[%emt 0:00:04]} 3. Bg2 {[%emt 0:00:13]} Bg7 {[%emt 0:00:04]} 4. c4 {[%emt 0:00:18]} Nc6 {[%emt 0:00:04]} 5. Nc3 {[%emt 0:00:14]} a6 {[%emt 0:00:26]} 6. O-O {[%emt 0:07:45]} Rb8 {[%emt 0:00:19]} 7. a4 {[%emt 0:00:26]} (7. e3 $14) 7... Nh6 {[%emt 0:02:18]} (7... d6 $11) 8. e4 {[%emt 0:13:58]} (8. d4 $14) 8... O-O {[%emt 0:09:33]} 9. d3 {[%emt 0:09:31]} d6 {[%emt 0:02:15] The position is equal.} 10. h3 {[%emt 0:03:08]} f5 {[%emt 0:03:21]} 11. Ng5 {[%emt 0:11:34]} Nd4 {[%emt 0:07:34]} 12. a5 {[%emt 0:14:16]} e6 {[%emt 0:06:17]} 13. Ne2 {[%emt 0:04:49]} Nc6 {[%emt 0:01:57]} 14. Bd2 {[%emt 0:03:28]} Bd7 {[%emt 0:04:41]} 15. Ra2 {[%emt 0:03:34]} Qe7 {[%emt 0:02:29]} 16. f4 {[%emt 0:04:30]} Nf7 {[%emt 0:04:54]} 17. Nxf7 {[%emt 0:02:25]} Rxf7 {[%emt 0:01:12]} 18. Bc3 {[%emt 0:00:18]} e5 {[%emt 0:02:19]} 19. Kh2 {[%emt 0:03:39]} (19. exf5 $11 Bxf5 20. Ra3) 19... Nd4 {[%emt 0:03:13]} (19... fxe4 $17 20. dxe4 Rbf8) 20. Bxd4 {[%emt 0:07:13]} cxd4 {[%emt 0:09:47]} 21. b4 {[%emt 0:02:42]} Bc6 {[%emt 0:01:39] [#]} (21... fxe4 $1 $17 22. Bxe4 Bc6) 22. b5 $1 $14 {[%emt 0:01:11]} axb5 {[%emt 0:02:40]} 23. cxb5 {[%emt 0:00:03]} Bxb5 {[%emt 0:00:17]} 24. exf5 {[%emt 0:00:18]} Bc6 $1 {[%emt 0:12:10]} 25. fxg6 {[%emt 0:00:10]} hxg6 {[%emt 0:00:06]} 26. Qb3 $36 {[%emt 0:00:35][%mdl 2048] Prevents Qe6. Strongly threatening Bxc6. White is pushing.} Bxg2 {[%emt 0:02:55]} 27. Kxg2 {[%emt 0:00:11] Black must now prevent fxe5.} Ra8 {[%emt 0:05:05]} 28. fxe5 {[%emt 0:04:06]} dxe5 {[%emt 0:00:18]} 29. Ng1 {[%emt 0:00:24] aiming for Raf2.} Raf8 {[%emt 0:02:10]} 30. Raf2 {[%emt 0:00:27] Threatens to win with Rxf7.} Bh6 {[%emt 0:02:59] [#]} (30... e4 $14) 31. Qd5 {[%emt 0:00:45]} ({Better is} 31. Rxf7 $1 $16 Rxf7 32. Nf3) 31... Be3 {[%emt 0:01:38] [#]} ({Black should play} 31... Qd7 $14 32. Qxd7 (32. Qxe5 Rxf2+ 33. Rxf2 Qc6+ 34. Rf3 Be3 $17) 32... Rxd7) 32. Rxf7 $1 $16 {[%emt 0:01:19]} Rxf7 {[%emt 0:00:05]} 33. Nf3 {[%emt 0:00:27]} Kg7 {[%emt 0:02:29]} 34. Qxe5+ {[%emt 0:00:29]} (34. h4 $18) 34... Qxe5 {[%emt 0:01:13]} 35. Nxe5 $18 {[%emt 0:00:01][%mdl 4096] Endgame. KRB-KRN} Rc7 {[%emt 0:00:08] A mistake that costs the game.} (35... Rxf1 $16 36. Kxf1 Bd2) 36. Nc4 {[%emt 0:00:07]} Bg5 {[%emt 0:00:37]} 37. Rb1 {[%emt 0:00:29]} Rd7 {[%emt 0:03:11] Against Nd6} 38. Kf3 {[%emt 0:00:48]} Bd8 {[%emt 0:00:25]} 39. Ke4 {[%emt 0:00:20]} Bf6 {[%emt 0:01:46]} (39... Kf6 $142 40. Rb5 Rf7 41. Kxd4 Rh7) 40. Rb6 {[%emt 0:00:46]} Bd8 {[%emt 0:01:20] [#]} 41. Rxg6+ $3 {[%emt 0:30:43][%mdl 512] Weighted Error Value: White=0.20 (precise) /Black=0.35.  Loses game:     	---       	Black=1      Mistake:       	White=4     	Black=5      Inaccurate:     	White=2     	Black=4      OK:         	White=13    	Black=4      Best:        	White=1     	Black=1      Strong:       	---       	Black=1} 1-0

[Event "WSTCC-65 2024"]
[Site "Krakow"]
[Date "2024.07.04"]
[Round "3.11"]
[White "Van Herck, Marcel"]
[Black "Van Kemenade, Rudy"]
[Result "1-0"]
[ECO "B08"]
[WhiteElo "1942"]
[BlackElo "1960"]
[Annotator "NA RC"]
[PlyCount "87"]
[EventDate "2024.07.01"]
[EventType "team-tourn"]
[EventCountry "POL"]
[SourceTitle "playchess.com"]
[Source "ChessBase"]
[SourceQuality "1"]
[TimeControl "40/5400+30:1800+30"]

1. e4 {[%emt 0:00:35]} g6 {[%emt 0:00:00]} 2. d4 {[%emt 0:00:10]} Bg7 {[%emt 0:00:00]} 3. Nc3 {[%emt 0:01:40]} d6 {[%emt 0:00:00]} 4. Nf3 {[%emt 0:03:10]} Nf6 {[%emt 0:00:57]} 5. Be2 {[%emt 0:01:05]} O-O {[%emt 0:00:50]} 6. O-O {[%emt 0:00:15]} Bg4 {[%emt 0:00:07]} 7. Be3 {[%emt 0:02:25]} Nc6 {[%emt 0:00:12]} 8. Qd2 {[%emt 0:06:05]} e5 {[%emt 0:00:08]} 9. dxe5 {[%emt 0:04:50]} dxe5 {[%emt 0:01:04]} 10. Rad1 {[%emt 0:03:31]} Qxd2 {[%emt 0:02:02]} 11. Rxd2 {[%emt 0:00:06]} a6 {[%emt 0:01:07]} 12. h3 Bxf3 {[%emt 0:00:09]} 13. Bxf3 {[%emt 0:04:13]} Rfd8 {[%emt 0:01:15]} 14. Rfd1 {[%emt 0:00:07]} Bf8 {[%emt 0:01:19]} 15. Rxd8 {[%emt 0:01:12]} Rxd8 {[%emt 0:00:26]} 16. Rxd8 {[%emt 0:00:05]} Nxd8 17. Bg5 Be7 {[%emt 0:01:35]} 18. Bxf6 {[%emt 0:00:31]} Bxf6 {[%emt 0:00:05]} 19. Nd5 {[%emt 0:00:00]} Bg5 {[%emt 0:00:00]} 20. Nxc7 {[%emt 0:00:55]} Bc1 {[%emt 0:00:00]} 21. b3 Nc6 22. c3 {[%emt 0:01:45]} Ne7 {[%emt 0:00:55]} 23. Ne8 {[%emt 0:07:39]} Bb2 {[%emt 0:01:25]} 24. Nf6+ {[%emt 0:00:15]} Kg7 {[%emt 0:00:22]} 25. Nd7 {[%emt 0:00:09]} Bxc3 {[%emt 0:01:24]} 26. Nc5 {[%emt 0:00:03]} Nc6 27. Nxb7 {[%emt 0:00:23]} Nb4 {[%emt 0:00:43]} 28. Be2 {[%emt 0:01:52]} Nxa2 {[%emt 0:02:58]} 29. Bxa6 {[%emt 0:00:17]} Nb4 {[%emt 0:00:12]} 30. Bc4 {[%emt 0:00:20]} f5 {[%emt 0:04:04]} 31. Nd6 {[%emt 0:04:03]} Kf6 {[%emt 0:00:11]} 32. Kf1 {[%emt 0:01:32]} Nc6 {[%emt 0:02:13]} 33. Ke2 {[%emt 0:00:54]} Bb4 {[%emt 0:00:16]} 34. Ne8+ {[%emt 0:03:43]} Kg5 {[%emt 0:02:48]} 35. Bd5 {[%emt 0:05:57]} Nd4+ {[%emt 0:00:11]} 36. Kd3 {[%emt 0:01:03]} Be1 {[%emt 0:00:47]} 37. exf5 {[%emt 0:02:10]} gxf5 {[%emt 0:00:11]} 38. Ke3 {[%emt 0:00:28]} Bb4 {[%emt 0:01:09]} 39. f4+ {[%emt 0:00:39]} Kg6 {[%emt 0:00:29]} 40. fxe5 {[%emt 0:00:13]} Bc5 {[%emt 0:00:06]} 41. Kd3 {[%emt 0:31:24]} Ba7 {[%emt 0:31:56]} 42. Nd6 {[%emt 0:03:53]} Kg5 {[%emt 0:01:30]} 43. e6 {[%emt 0:01:26]} Kf6 {[%emt 0:00:12]} 44. e7 {[%emt 0:00:07]} 1-0

[Event "WSTCC-65 2024"]
[Site "Krakow"]
[Date "2024.07.04"]
[Round "3.12"]
[White "Vinke, Dietmar"]
[Black "Roos, Jean-Luc"]
[Result "1/2-1/2"]
[ECO "D30"]
[WhiteElo "2097"]
[BlackElo "2161"]
[Annotator "RC"]
[PlyCount "29"]
[EventDate "2024.07.01"]
[EventType "team-tourn"]
[EventCountry "POL"]
[SourceTitle "playchess.com"]
[Source "ChessBase"]
[SourceQuality "1"]
[TimeControl "40/5400+30:1800+30"]

1. d4 {[%emt 0:00:02]} d5 {[%emt 0:00:10]} 2. c4 {[%emt 0:00:09]} e6 {[%emt 0:00:10]} 3. Nf3 {[%emt 0:00:06]} Nf6 {[%emt 0:00:18]} 4. g3 {[%emt 0:00:12]} Bb4+ {[%emt 0:00:20]} 5. Bd2 {[%emt 0:00:21]} Be7 {[%emt 0:00:09]} 6. Bg2 {[%emt 0:00:20]} O-O {[%emt 0:00:18]} 7. Nc3 {[%emt 0:00:26]} c6 {[%emt 0:00:51]} 8. b3 {[%emt 0:00:13]} b6 {[%emt 0:00:45]} 9. Qc2 {[%emt 0:00:27]} Bb7 {[%emt 0:01:54]} 10. O-O {[%emt 0:49:05]} Nbd7 {[%emt 0:05:05]} 11. Rad1 {[%emt 0:02:28]} Rc8 {[%emt 0:12:00]} 12. e4 {[%emt 0:01:34]} dxe4 {[%emt 0:14:57]} 13. Nxe4 {[%emt 0:00:08]} c5 {[%emt 0:13:15]} 14. Nxf6+ {[%emt 0:00:26]} Nxf6 {[%emt 0:00:42]} 15. dxc5 {[%emt 0:02:40]} 1/2-1/2

[Event "WSTCC-65 2024"]
[Site "Krakow"]
[Date "2024.07.04"]
[Round "3.12"]
[White "Quinn, Peter"]
[Black "Aragones-Melhem, Georgy"]
[Result "0-1"]
[ECO "B32"]
[WhiteElo "1744"]
[BlackElo "2079"]
[Annotator "NA RC"]
[PlyCount "112"]
[EventDate "2024.07.01"]
[EventType "team-tourn"]
[EventCountry "POL"]
[SourceTitle "playchess.com"]
[Source "ChessBase"]
[SourceQuality "1"]
[TimeControl "40/5400+30:1800+30"]

1. e4 {[%emt 0:00:23]} c5 {[%emt 0:00:08]} 2. Nf3 {[%emt 0:00:38]} Nc6 {[%emt 0:00:10]} 3. d4 {[%emt 0:00:43]} cxd4 {[%emt 0:00:14]} 4. Nxd4 {[%emt 0:00:22]} e5 {[%emt 0:00:37]} 5. Nb5 {[%emt 0:01:18]} d6 {[%emt 0:00:18]} 6. a4 {[%emt 0:01:51]} a6 {[%emt 0:02:15]} 7. N5a3 {[%emt 0:02:07]} Be7 {[%emt 0:07:16]} 8. Nc3 {[%emt 0:02:31]} Nf6 {[%emt 0:00:55]} 9. Bg5 {[%emt 0:02:44]} O-O {[%emt 0:01:11]} 10. Bxf6 {[%emt 0:03:21]} Bxf6 {[%emt 0:00:50]} 11. Bc4 {[%emt 0:04:18]} Be6 {[%emt 0:07:41]} 12. O-O {[%emt 0:02:56]} Nd4 {[%emt 0:01:42]} 13. Nd5 {[%emt 0:04:25]} b5 {[%emt 0:03:45]} 14. Bd3 {[%emt 0:20:24]} Bxd5 {[%emt 0:25:51]} 15. exd5 {[%emt 0:00:25]} b4 {[%emt 0:04:33]} 16. Nc4 {[%emt 0:02:51]} Rb8 {[%emt 0:00:44]} 17. a5 {[%emt 0:08:29]} Qc7 {[%emt 0:05:39]} 18. Nb6 {[%emt 0:10:11]} Rfd8 {[%emt 0:03:21]} 19. Qd2 {[%emt 0:02:28]} Qc5 {[%emt 0:01:46]} 20. Ra4 {[%emt 0:00:41]} e4 21. Bxe4 {[%emt 0:02:43]} Rxb6 {[%emt 0:21:17]} 22. axb6 {[%emt 0:00:28]} Qb5 {[%emt 0:00:14]} 23. Rfa1 {[%emt 0:07:31]} Ne2+ {[%emt 0:00:29]} 24. Kh1 {[%emt 0:00:11]} Bxb2 {[%emt 0:00:26]} 25. Bd3 {[%emt 0:00:33]} Qxb6 {[%emt 0:00:40]} 26. Qxe2 {[%emt 0:00:59]} Bxa1 {[%emt 0:00:41]} 27. Rxa1 {[%emt 0:00:12]} a5 {[%emt 0:00:27]} 28. Qe3 {[%emt 0:03:02]} Qc7 {[%emt 0:00:31]} 29. Qe4 {[%emt 0:00:21]} g6 {[%emt 0:00:19]} 30. Qc4 {[%emt 0:01:25]} Qb6 {[%emt 0:01:06]} 31. Kg1 {[%emt 0:00:24]} Ra8 {[%emt 0:01:51]} 32. Qc6 {[%emt 0:00:48]} Qd8 {[%emt 0:00:11]} 33. g3 {[%emt 0:02:11]} Kg7 {[%emt 0:00:11]} 34. Re1 {[%emt 0:00:44]} Rc8 {[%emt 0:00:11]} 35. Qb7 {[%emt 0:01:40]} Rc3 {[%emt 0:01:24]} 36. Re7 {[%emt 0:00:54]} Qf8 {[%emt 0:00:01]} 37. Rc7 Qe8 {[%emt 0:00:39]} 38. Re7 {[%emt 0:01:11]} Qf8 {[%emt 0:00:18]} 39. Qd7 {[%emt 0:01:17]} b3 40. Re8 {[%emt 0:00:55]} b2 {[%emt 0:01:09]} 41. Re1 {[%emt 0:33:00]} Qb8 {[%emt 0:30:02]} 42. Rb1 {[%emt 0:00:00]} Qb4 {[%emt 0:00:00]} 43. Qa7 {[%emt 0:00:00]} a4 {[%emt 0:00:00]} 44. Kg2 {[%emt 0:00:00]} a3 {[%emt 0:00:00]} 45. Qa6 {[%emt 0:00:00]} Qc5 {[%emt 0:00:00]} 46. Qa8 {[%emt 0:00:00]} h5 {[%emt 0:00:00]} 47. h4 {[%emt 0:00:00]} Qd4 {[%emt 0:00:00]} 48. Qa5 {[%emt 0:00:00]} Qc5 {[%emt 0:00:00]} 49. Qa8 {[%emt 0:00:00]} Qd4 {[%emt 0:00:00]} 50. Qa5 {[%emt 0:00:00]} Qe5 {[%emt 0:00:00]} 51. Qb4 {[%emt 0:00:00]} Qxd5+ {[%emt 0:00:00]} 52. Be4 {[%emt 0:00:00]} Qc5 {[%emt 0:00:00]} 53. Qa4 {[%emt 0:00:00]} Rc4 {[%emt 0:00:00]} 54. Qa8 {[%emt 0:00:00]} Rxe4 {[%emt 0:00:00]} 55. Qxe4 {[%emt 0:00:00]} a2 {[%emt 0:00:00]} 56. Qe1 {[%emt 0:00:00]} Qxc2 {[%emt 0:00:00]} 0-1